[Event "*** Titled Tuesday Blitz"]
[Site "Chess.com"]
[Date "2019.07.02"]
[Round "4"]
[White "Orest_Vovk"]
[Black "Mbneu"]
[Result "1-0"]
[WhiteElo "2324"]
[BlackElo "2317"]
[TimeControl "180+2"]
[EndTime "13:51:57 PDT"]
[Termination "Orest_Vovk won by resignation"]

1. h4 {[%clk 0:03:01.9]} 1... d5 {[%clk 0:02:59.6]} 2. h5 {[%clk 0:03:00.5]}
2... h6 {[%clk 0:02:59.7]} 3. e4 {[%clk 0:03:01]} 3... dxe4 {[%clk 0:02:59.6]}
4. Nc3 {[%clk 0:03:02.4]} 4... Nf6 {[%clk 0:02:59.8]} 5. Qe2 {[%clk 0:02:58.2]}
5... Nc6 {[%clk 0:02:55.2]} 6. Nxe4 {[%clk 0:02:57.9]} 6... Nxe4 {[%clk
0:02:55.6]} 7. Qxe4 {[%clk 0:02:58.3]} 7... Qd4 {[%clk 0:02:54.6]} 8. Qxd4
{[%clk 0:02:59.1]} 8... Nxd4 {[%clk 0:02:54.4]} 9. Bd3 {[%clk 0:03:01]} 9... Bf5
{[%clk 0:02:52.2]} 10. Bxf5 {[%clk 0:03:01]} 10... Nxf5 {[%clk 0:02:53.8]} 11.
Ne2 {[%clk 0:03:02.6]} 11... O-O-O {[%clk 0:02:45.8]} 12. d3 {[%clk 0:03:03.7]}
12... e5 {[%clk 0:02:33.8]} 13. Be3 {[%clk 0:03:02.1]} 13... Nxe3 {[%clk
0:02:33.3]} 14. fxe3 {[%clk 0:03:03.1]} 14... Bc5 {[%clk 0:02:33.2]} 15. Rh3
{[%clk 0:03:00]} 15... Rhe8 {[%clk 0:02:17.5]} 16. O-O-O {[%clk 0:02:59.8]}
16... e4 {[%clk 0:02:07.1]} 17. d4 {[%clk 0:02:58.6]} 17... Be7 {[%clk 0:02:08]}
18. Rg3 {[%clk 0:02:55.8]} 18... Bg5 {[%clk 0:02:08.3]} 19. Rf1 {[%clk
0:02:55.2]} 19... f6 {[%clk 0:02:05.8]} 20. Nf4 {[%clk 0:02:52.8]} 20... Re7
{[%clk 0:01:52.8]} 21. c4 {[%clk 0:02:47]} 21... b6 {[%clk 0:01:50.8]} 22. Kc2
{[%clk 0:02:47.3]} 22... c6 {[%clk 0:01:49.1]} 23. b4 {[%clk 0:02:46]} 23... Kc7
{[%clk 0:01:49.5]} 24. a4 {[%clk 0:02:44.9]} 24... a6 {[%clk 0:01:49.6]} 25. Kc3
{[%clk 0:02:29.9]} 25... Rdd7 {[%clk 0:01:46.6]} 26. Ng6 {[%clk 0:02:23.8]}
26... Re8 {[%clk 0:01:44.9]} 27. Rf5 {[%clk 0:02:20.8]} 27... Ra8 {[%clk
0:01:37.7]} 28. Nf4 {[%clk 0:02:12.8]} 28... Re8 {[%clk 0:01:36.1]} 29. Nh3
{[%clk 0:01:50]} 29... Rh8 {[%clk 0:01:31.7]} 30. Nxg5 {[%clk 0:01:39.1]} 30...
hxg5 {[%clk 0:01:32.1]} 31. Rh3 {[%clk 0:01:39.6]} 31... Rh6 {[%clk 0:01:31.4]}
32. g4 {[%clk 0:01:38.2]} 32... Rd6 {[%clk 0:01:24.5]} 33. Rg3 {[%clk
0:01:36.1]} 33... Kd7 {[%clk 0:01:20.8]} 34. c5 {[%clk 0:01:34.6]} 34... bxc5
{[%clk 0:01:21.4]} 35. bxc5 {[%clk 0:01:28.9]} 35... Re6 {[%clk 0:01:20.3]} 36.
Rf1 {[%clk 0:01:21.9]} 36... Re8 {[%clk 0:01:19.2]} 37. Rb1 {[%clk 0:01:22.1]}
37... Kc7 {[%clk 0:01:14.4]} 38. Rb6 {[%clk 0:01:22.2]} 38... Ra8 {[%clk
0:01:14.3]} 39. Rg1 {[%clk 0:01:20.8]} 39... Rhh8 {[%clk 0:01:14]} 40. Rf1
{[%clk 0:01:14.7]} 40... Rhb8 {[%clk 0:01:11.7]} 41. a5 {[%clk 0:01:15]} 41...
Rxb6 {[%clk 0:01:10.2]} 42. axb6+ {[%clk 0:01:15.4]} 42... Kb7 {[%clk
0:01:09.9]} 43. h6 {[%clk 0:01:16.5]} 43... gxh6 {[%clk 0:01:09.4]} 44. Rxf6
{[%clk 0:01:16.3]} 44... a5 {[%clk 0:01:11]} 45. Rxh6 {[%clk 0:01:09.4]} 45...
a4 {[%clk 0:01:12.3]} 46. Kb2 {[%clk 0:01:10.6]} 46... a3+ {[%clk 0:01:13.1]}
47. Ka2 {[%clk 0:01:11.8]} 47... Ra4 {[%clk 0:01:12.2]} 48. Rh7+ {[%clk
0:01:11]} 48... Kb8 {[%clk 0:01:12.5]} 49. Rc7 {[%clk 0:01:10.8]} 49... Rc4
{[%clk 0:01:11.1]} 50. Kxa3 {[%clk 0:01:08.5]} 50... Rc3+ {[%clk 0:01:12.1]} 51.
Kb4 {[%clk 0:01:09.6]} 51... Rxe3 {[%clk 0:01:13.6]} 52. Rxc6 {[%clk 0:01:10.8]}
52... Rd3 {[%clk 0:01:13.8]} 53. Kc4 {[%clk 0:01:08.1]} 1-0

[Event "*** Titled Tuesday Blitz"]
[Site "Chess.com"]
[Date "2019.07.02"]
[Round "4"]
[White "Zarikovs1999"]
[Black "diskeleven"]
[Result "0-1"]
[WhiteElo "2534"]
[BlackElo "2398"]
[TimeControl "180+2"]
[EndTime "13:51:59 PDT"]
[Termination "diskeleven won by resignation"]

1. e4 {[%clk 0:03:01.9]} 1... c5 {[%clk 0:02:55.1]} 2. Nf3 {[%clk 0:02:52.6]}
2... e6 {[%clk 0:02:57]} 3. Nc3 {[%clk 0:02:50.8]} 3... a6 {[%clk 0:02:57.3]} 4.
g3 {[%clk 0:02:49.3]} 4... b5 {[%clk 0:02:56.3]} 5. Bg2 {[%clk 0:02:44.2]} 5...
Bb7 {[%clk 0:02:57.5]} 6. d3 {[%clk 0:02:38.7]} 6... d6 {[%clk 0:02:50.1]} 7.
O-O {[%clk 0:02:37.2]} 7... Be7 {[%clk 0:02:51.3]} 8. Be3 {[%clk 0:02:31.7]}
8... Nd7 {[%clk 0:02:52]} 9. Qd2 {[%clk 0:02:32.2]} 9... Ngf6 {[%clk 0:02:48.7]}
10. a4 {[%clk 0:02:32.5]} 10... b4 {[%clk 0:02:47.1]} 11. Ne2 {[%clk 0:02:33.2]}
11... d5 {[%clk 0:02:43.8]} 12. exd5 {[%clk 0:01:33.5]} 12... Nxd5 {[%clk
0:02:32.6]} 13. Nf4 {[%clk 0:01:30.7]} 13... Nxe3 {[%clk 0:02:33]} 14. fxe3
{[%clk 0:01:32.6]} 14... O-O {[%clk 0:02:27.8]} 15. a5 {[%clk 0:01:29.1]} 15...
Qc7 {[%clk 0:02:26.2]} 16. c4 {[%clk 0:01:15.5]} 16... Rad8 {[%clk 0:02:26.3]}
17. Rad1 {[%clk 0:01:14.1]} 17... Nf6 {[%clk 0:02:26.4]} 18. Qc2 {[%clk
0:01:09.3]} 18... Rd7 {[%clk 0:02:27.5]} 19. b3 {[%clk 0:01:08.5]} 19... Qxa5
{[%clk 0:02:26.7]} 20. Ne5 {[%clk 0:01:04.8]} 20... Rc7 {[%clk 0:02:27.9]} 21.
Bxb7 {[%clk 0:00:55.4]} 21... Rxb7 {[%clk 0:02:28.7]} 22. d4 {[%clk 0:00:47.4]}
22... Qc7 {[%clk 0:02:23.5]} 23. Nf3 {[%clk 0:00:31.1]} 23... h6 {[%clk
0:02:16.4]} 24. d5 {[%clk 0:00:20.2]} 24... e5 {[%clk 0:02:12.3]} 25. Ne2 {[%clk
0:00:15.7]} 25... Ng4 {[%clk 0:02:11.2]} 26. Qc1 {[%clk 0:00:13]} 26... f5
{[%clk 0:02:09.3]} 27. h3 {[%clk 0:00:13.5]} 27... Nf6 {[%clk 0:02:06.3]} 28.
Nh4 {[%clk 0:00:13.1]} 28... f4 {[%clk 0:01:56.8]} 29. exf4 {[%clk 0:00:12]}
29... Ne4 {[%clk 0:01:57]} 30. Ng6 {[%clk 0:00:11.2]} 30... Bd6 {[%clk
0:01:50.9]} 31. Nxf8 {[%clk 0:00:09.9]} 31... Bxf8 {[%clk 0:01:52]} 32. fxe5
{[%clk 0:00:09.5]} 32... Qxe5 {[%clk 0:01:52.8]} 33. Qf4 {[%clk 0:00:10.7]}
33... Qe8 {[%clk 0:01:50.2]} 34. d6 {[%clk 0:00:09.2]} 34... Rd7 {[%clk
0:01:49.3]} 35. Rf3 {[%clk 0:00:07.8]} 35... Bxd6 {[%clk 0:01:50.3]} 36. Qf5
{[%clk 0:00:08.8]} 36... Nf6 {[%clk 0:01:42.1]} 37. Nf4 {[%clk 0:00:08.1]} 37...
Bxf4 {[%clk 0:01:40.5]} 38. Rxd7 {[%clk 0:00:08]} 38... Be3+ {[%clk 0:01:35.7]}
39. Kg2 {[%clk 0:00:06.8]} 39... Nxd7 {[%clk 0:01:34.8]} 40. Qd5+ {[%clk
0:00:05.2]} 40... Kh8 {[%clk 0:01:33.2]} 41. Qd3 {[%clk 0:00:05]} 41... Bd4
{[%clk 0:01:32.5]} 42. Qf1 {[%clk 0:00:05.7]} 42... Qe4 {[%clk 0:01:28.1]} 43.
h4 {[%clk 0:00:07]} 43... Ne5 {[%clk 0:01:29.1]} 0-1

[Event "*** Titled Tuesday Blitz"]
[Site "Chess.com"]
[Date "2019.07.02"]
[Round "4"]
[White "senecacrane"]
[Black "GuerrieroFromLevant"]
[Result "0-1"]
[WhiteElo "2316"]
[BlackElo "2236"]
[TimeControl "180+2"]
[EndTime "13:51:59 PDT"]
[Termination "GuerrieroFromLevant won by resignation"]

1. Nf3 {[%clk 0:03:01.9]} 1... d5 {[%clk 0:03:00.9]} 2. e3 {[%clk 0:03:03]} 2...
Nf6 {[%clk 0:03:01.7]} 3. c4 {[%clk 0:03:04.2]} 3... dxc4 {[%clk 0:02:58.8]} 4.
Bxc4 {[%clk 0:03:04.7]} 4... a6 {[%clk 0:03:00.4]} 5. a4 {[%clk 0:03:02.2]} 5...
c5 {[%clk 0:02:58.1]} 6. Nc3 {[%clk 0:03:00.9]} 6... e6 {[%clk 0:02:58.8]} 7.
O-O {[%clk 0:03:01.2]} 7... Nc6 {[%clk 0:02:58.4]} 8. e4 {[%clk 0:02:42.6]} 8...
Bd6 {[%clk 0:02:55.4]} 9. Re1 {[%clk 0:02:39.2]} 9... Qc7 {[%clk 0:02:52.6]} 10.
d3 {[%clk 0:02:33.1]} 10... O-O {[%clk 0:02:48.1]} 11. h3 {[%clk 0:02:33.1]}
11... h6 {[%clk 0:02:31]} 12. Be3 {[%clk 0:02:23.8]} 12... Nd7 {[%clk
0:02:23.2]} 13. Qe2 {[%clk 0:02:18.3]} 13... b6 {[%clk 0:02:15]} 14. Rad1 {[%clk
0:02:17.8]} 14... Bb7 {[%clk 0:02:15.7]} 15. Bb3 {[%clk 0:02:05.9]} 15... Nde5
{[%clk 0:02:12]} 16. Nxe5 {[%clk 0:02:04.3]} 16... Bxe5 {[%clk 0:02:12.7]} 17.
Qg4 {[%clk 0:01:47]} 17... Kh8 {[%clk 0:02:03.3]} 18. f4 {[%clk 0:01:42.4]}
18... Bd4 {[%clk 0:01:57.4]} 19. Bc4 {[%clk 0:01:35.7]} 19... Bxe3+ {[%clk
0:01:40.5]} 20. Rxe3 {[%clk 0:01:35.8]} 20... Nd4 {[%clk 0:01:41.3]} 21. f5
{[%clk 0:00:52.3]} 21... exf5 {[%clk 0:01:36.7]} 22. exf5 {[%clk 0:00:52.9]}
22... Rae8 {[%clk 0:01:38]} 23. Rde1 {[%clk 0:00:47.3]} 23... Rxe3 {[%clk
0:01:35]} 24. Rxe3 {[%clk 0:00:49.2]} 24... Qd7 {[%clk 0:01:35.2]} 25. Rg3
{[%clk 0:00:32.6]} 25... f6 {[%clk 0:01:36]} 26. Be6 {[%clk 0:00:31.8]} 26...
Qe7 {[%clk 0:01:30.6]} 27. Ne4 {[%clk 0:00:28.8]} 27... Nxe6 {[%clk 0:01:27.5]}
28. fxe6 {[%clk 0:00:29.7]} 28... f5 {[%clk 0:01:28.2]} 29. Qg6 {[%clk
0:00:16.2]} 29... fxe4 {[%clk 0:01:24.7]} 30. dxe4 {[%clk 0:00:18.1]} 30... Qf6
{[%clk 0:01:21]} 31. Qg4 {[%clk 0:00:17.7]} 31... Qe5 {[%clk 0:01:19.8]} 32. Rf3
{[%clk 0:00:17.4]} 32... Rxf3 {[%clk 0:01:19.4]} 33. gxf3 {[%clk 0:00:19.3]}
33... Bc8 {[%clk 0:01:16.4]} 34. Qf5 {[%clk 0:00:16.8]} 34... Qxe6 {[%clk
0:01:14.4]} 35. Qf8+ {[%clk 0:00:17.8]} 35... Kh7 {[%clk 0:01:15.6]} 36. Kf2
{[%clk 0:00:19.2]} 36... Bd7 {[%clk 0:01:15.2]} 37. Qb8 {[%clk 0:00:20]} 37...
Bxa4 {[%clk 0:01:14]} 38. Ke3 {[%clk 0:00:20.3]} 38... c4 {[%clk 0:01:14.8]} 39.
f4 {[%clk 0:00:20.9]} 39... b5 {[%clk 0:01:14.5]} 40. f5 {[%clk 0:00:22.3]}
40... Qf6 {[%clk 0:01:14.5]} 41. Qc7 {[%clk 0:00:23.4]} 41... Qxb2 {[%clk
0:01:13.6]} 42. Kf4 {[%clk 0:00:24.7]} 42... Qf2+ {[%clk 0:01:13.3]} 43. Ke5
{[%clk 0:00:25.9]} 43... Qg3+ {[%clk 0:01:14.2]} 0-1

[Event "*** Titled Tuesday Blitz"]
[Site "Chess.com"]
[Date "2019.07.02"]
[Round "4"]
[White "MateSchmate"]
[Black "PotapovaM"]
[Result "0-1"]
[WhiteElo "2353"]
[BlackElo "2501"]
[TimeControl "180+2"]
[EndTime "13:52:08 PDT"]
[Termination "PotapovaM won by checkmate"]

1. e4 {[%clk 0:03:01.9]} 1... c5 {[%clk 0:02:53.2]} 2. Nf3 {[%clk 0:02:58.4]}
2... d6 {[%clk 0:02:51]} 3. d4 {[%clk 0:02:58.4]} 3... cxd4 {[%clk 0:02:50.5]}
4. Nxd4 {[%clk 0:02:59.3]} 4... Nf6 {[%clk 0:02:52.2]} 5. Nc3 {[%clk 0:02:59.6]}
5... a6 {[%clk 0:02:53.9]} 6. h3 {[%clk 0:03:00.5]} 6... e5 {[%clk 0:02:54.6]}
7. Nde2 {[%clk 0:03:00]} 7... h5 {[%clk 0:02:54.9]} 8. g3 {[%clk 0:02:58.3]}
8... Be6 {[%clk 0:02:50.8]} 9. Bg2 {[%clk 0:02:58.2]} 9... b5 {[%clk 0:02:51.5]}
10. a4 {[%clk 0:02:45]} 10... b4 {[%clk 0:02:51.2]} 11. Nd5 {[%clk 0:02:45.8]}
11... Nxd5 {[%clk 0:02:51.2]} 12. exd5 {[%clk 0:02:45.7]} 12... Bf5 {[%clk
0:02:52.8]} 13. c4 {[%clk 0:02:40]} 13... Nd7 {[%clk 0:02:49.6]} 14. Be3 {[%clk
0:02:37.5]} 14... Rc8 {[%clk 0:02:48.6]} 15. b3 {[%clk 0:02:38]} 15... a5 {[%clk
0:02:47.3]} 16. O-O {[%clk 0:02:36.5]} 16... Be7 {[%clk 0:02:47.9]} 17. f4
{[%clk 0:02:37.1]} 17... Bh7 {[%clk 0:02:45.4]} 18. f5 {[%clk 0:02:23.3]} 18...
Bg5 {[%clk 0:02:44.8]} 19. Qd2 {[%clk 0:02:14.6]} 19... Bxe3+ {[%clk 0:02:42.6]}
20. Qxe3 {[%clk 0:02:16.5]} 20... Qb6 {[%clk 0:02:44.2]} 21. Qxb6 {[%clk
0:02:14.9]} 21... Nxb6 {[%clk 0:02:46.1]} 22. g4 {[%clk 0:02:06.7]} 22... hxg4
{[%clk 0:02:36]} 23. hxg4 {[%clk 0:02:08.6]} 23... f6 {[%clk 0:02:36.4]} 24. Ng3
{[%clk 0:01:58]} 24... Nd7 {[%clk 0:02:36.1]} 25. Ne4 {[%clk 0:01:53.8]} 25...
Ke7 {[%clk 0:02:34.2]} 26. Kf2 {[%clk 0:01:51.4]} 26... g6 {[%clk 0:02:30.5]}
27. Ke3 {[%clk 0:01:25.2]} 27... Rcg8 {[%clk 0:02:24]} 28. Bh3 {[%clk
0:01:08.3]} 28... gxf5 {[%clk 0:02:18.8]} 29. gxf5 {[%clk 0:01:08.3]} 29... Bg6
{[%clk 0:02:19.8]} 30. Rh1 {[%clk 0:00:57.9]} 30... Be8 {[%clk 0:02:15.2]} 31.
Kf3 {[%clk 0:00:47.7]} 31... Rh4 {[%clk 0:02:10.3]} 32. Nf2 {[%clk 0:00:27.7]}
32... Bh5+ {[%clk 0:01:52.2]} 33. Ke3 {[%clk 0:00:21.5]} 33... Rg3+ {[%clk
0:01:52.4]} 34. Kd2 {[%clk 0:00:22.9]} 34... Nc5 {[%clk 0:01:46.7]} 35. Bf1
{[%clk 0:00:14.7]} 35... Rxh1 {[%clk 0:01:38.9]} 36. Nxh1 {[%clk 0:00:15.7]}
36... Rg1 {[%clk 0:01:40.1]} 37. Rb1 {[%clk 0:00:09.9]} 37... Rxh1 {[%clk
0:01:39.8]} 38. Ke3 {[%clk 0:00:10.3]} 38... Bg4 {[%clk 0:01:34.5]} 39. Bd3
{[%clk 0:00:09.6]} 39... Rxb1 {[%clk 0:01:34]} 40. Bxb1 {[%clk 0:00:11.5]} 40...
Nxb3 {[%clk 0:01:35.8]} 41. Be4 {[%clk 0:00:11.7]} 41... Nc5 {[%clk 0:01:36.8]}
42. Bb1 {[%clk 0:00:13.6]} 42... Nxa4 {[%clk 0:01:37.8]} 43. Bc2 {[%clk
0:00:13.6]} 43... Nc5 {[%clk 0:01:39]} 44. Kd2 {[%clk 0:00:15.5]} 44... a4
{[%clk 0:01:38.8]} 45. Bb1 {[%clk 0:00:16.9]} 45... b3 {[%clk 0:01:39.6]} 46.
Kc3 {[%clk 0:00:18.2]} 46... a3 {[%clk 0:01:40.1]} 47. Kb4 {[%clk 0:00:19.4]}
47... a2 {[%clk 0:01:41]} 48. Kb5 {[%clk 0:00:20.9]} 48... axb1=Q {[%clk
0:01:40.6]} 49. Kc6 {[%clk 0:00:22.8]} 49... b2 {[%clk 0:01:34.8]} 50. Kc7
{[%clk 0:00:24.7]} 50... Qa1 {[%clk 0:01:33.9]} 51. Kc6 {[%clk 0:00:23.9]} 51...
Qa6+ {[%clk 0:01:34.3]} 52. Kc7 {[%clk 0:00:25.1]} 52... Qb7# {[%clk 0:01:35.5]}
0-1

[Event "*** Titled Tuesday Blitz"]
[Site "Chess.com"]
[Date "2019.07.02"]
[Round "4"]
[White "DryCounty"]
[Black "Alexander_Moskalenko"]
[Result "1/2-1/2"]
[WhiteElo "2714"]
[BlackElo "2857"]
[TimeControl "180+2"]
[EndTime "13:52:09 PDT"]
[Termination "Game drawn by agreement"]

1. Nf3 {[%clk 0:03:01.9]} 1... c5 {[%clk 0:02:59.6]} 2. c4 {[%clk 0:03:01.8]}
2... Nc6 {[%clk 0:02:56.6]} 3. d4 {[%clk 0:03:02]} 3... cxd4 {[%clk 0:02:58.5]}
4. Nxd4 {[%clk 0:03:03.2]} 4... Nf6 {[%clk 0:02:38.3]} 5. Nc3 {[%clk 0:03:03]}
5... e6 {[%clk 0:02:39.4]} 6. Ndb5 {[%clk 0:03:02.5]} 6... d5 {[%clk 0:02:34.8]}
7. Bf4 {[%clk 0:03:01.2]} 7... e5 {[%clk 0:02:34.8]} 8. cxd5 {[%clk 0:03:01.7]}
8... exf4 {[%clk 0:02:35.7]} 9. dxc6 {[%clk 0:03:02.8]} 9... bxc6 {[%clk
0:02:35.6]} 10. Qxd8+ {[%clk 0:03:03.5]} 10... Kxd8 {[%clk 0:02:37.5]} 11.
O-O-O+ {[%clk 0:03:04.4]} 11... Bd7 {[%clk 0:02:37.4]} 12. Nd6 {[%clk
0:03:05.1]} 12... Bxd6 {[%clk 0:02:38.9]} 13. Rxd6 {[%clk 0:03:05.2]} 13... Ke7
{[%clk 0:02:32.9]} 14. Rd4 {[%clk 0:03:05.6]} 14... g5 {[%clk 0:02:27.7]} 15. g3
{[%clk 0:03:02.8]} 15... c5 {[%clk 0:02:28.5]} 16. Rc4 {[%clk 0:02:56.8]} 16...
Be6 {[%clk 0:01:46.4]} 17. Rxc5 {[%clk 0:02:53.8]} 17... Rac8 {[%clk 0:01:47.8]}
18. Rxc8 {[%clk 0:02:39.5]} 18... Rxc8 {[%clk 0:01:49.7]} 19. Bg2 {[%clk
0:02:40.2]} 19... fxg3 {[%clk 0:01:37.5]} 20. hxg3 {[%clk 0:02:38.4]} 20... Bxa2
{[%clk 0:01:39.1]} 21. Kc2 {[%clk 0:02:32.8]} 21... Be6 {[%clk 0:01:37.5]} 22.
Ra1 {[%clk 0:02:30.9]} 22... Rc7 {[%clk 0:01:38.8]} 23. e4 {[%clk 0:02:28.5]}
23... Ng4 {[%clk 0:01:36.1]} 24. Rf1 {[%clk 0:01:27.5]} 24... Bc4 {[%clk
0:01:27.5]} 25. Rh1 {[%clk 0:01:27]} 25... Nxf2 {[%clk 0:01:28.3]} 26. Rxh7
{[%clk 0:01:25.4]} 26... Ng4 {[%clk 0:01:27.5]} 27. Bf3 {[%clk 0:01:16.7]} 27...
Ne5 {[%clk 0:01:26.2]} 28. Bh5 {[%clk 0:01:13.1]} 28... Bd3+ {[%clk 0:01:16.6]}
29. Kd2 {[%clk 0:01:11.8]} 29... Rd7 {[%clk 0:01:18]} 30. Ke3 {[%clk 0:00:59.8]}
30... Bc4 {[%clk 0:01:10.6]} 31. Be2 {[%clk 0:00:51.4]} 31... Bxe2 {[%clk
0:01:10.8]} 32. Kxe2 {[%clk 0:00:51.5]} 32... Rb7 {[%clk 0:01:08.3]} 33. Nd5+
{[%clk 0:00:50.2]} 33... Kf8 {[%clk 0:01:04.2]} 34. b4 {[%clk 0:00:49]} 34...
Nc6 {[%clk 0:01:04.3]} 35. Rh5 {[%clk 0:00:44.4]} 35... Nxb4 {[%clk 0:01:05.4]}
36. Rxg5 {[%clk 0:00:44.5]} 36... Nc6 {[%clk 0:01:07]} 37. Ke3 {[%clk
0:00:42.9]} 37... a5 {[%clk 0:01:05.3]} 38. Nf6 {[%clk 0:00:41.3]} 38... Ke7
{[%clk 0:01:05.8]} 39. Nd5+ {[%clk 0:00:36.4]} 39... Kf8 {[%clk 0:01:05.6]} 40.
Nf6 {[%clk 0:00:36.8]} 40... Ke7 {[%clk 0:01:03.7]} 41. Nd5+ {[%clk 0:00:37.7]}
41... Kd6 {[%clk 0:01:01.3]} 42. Rg8 {[%clk 0:00:37]} 42... a4 {[%clk
0:00:59.8]} 43. Ra8 {[%clk 0:00:31.4]} 43... Ra7 {[%clk 0:01:00.4]} 44. Rxa7
{[%clk 0:00:32.5]} 44... Nxa7 {[%clk 0:01:02.3]} 45. Nb6 {[%clk 0:00:33.5]}
45... a3 {[%clk 0:00:58.9]} 46. Nc4+ {[%clk 0:00:34.4]} 46... Ke6 {[%clk
0:01:00.5]} 47. Nxa3 {[%clk 0:00:36.3]} 47... f5 {[%clk 0:01:02.1]} 1/2-1/2

[Event "*** Titled Tuesday Blitz"]
[Site "Chess.com"]
[Date "2019.07.02"]
[Round "4"]
[White "tunadrol"]
[Black "FMJoseHerrera"]
[Result "1-0"]
[WhiteElo "2428"]
[BlackElo "2632"]
[TimeControl "180+2"]
[EndTime "13:52:10 PDT"]
[Termination "tunadrol won on time"]

1. e4 {[%clk 0:03:01.9]} 1... c5 {[%clk 0:02:59.1]} 2. Nf3 {[%clk 0:02:59.3]}
2... e6 {[%clk 0:02:58.9]} 3. d4 {[%clk 0:02:58.6]} 3... cxd4 {[%clk 0:03:00.1]}
4. Nxd4 {[%clk 0:02:53.5]} 4... a6 {[%clk 0:03:00.8]} 5. Bd3 {[%clk 0:02:53.7]}
5... Qc7 {[%clk 0:03:00.7]} 6. O-O {[%clk 0:02:53.4]} 6... d6 {[%clk 0:02:59.5]}
7. c4 {[%clk 0:02:46.6]} 7... Nd7 {[%clk 0:02:59.2]} 8. Nc3 {[%clk 0:02:46.4]}
8... Ngf6 {[%clk 0:02:57.9]} 9. Be3 {[%clk 0:02:43.8]} 9... Be7 {[%clk
0:02:53.4]} 10. f4 {[%clk 0:02:44.6]} 10... h5 {[%clk 0:02:47]} 11. Be2 {[%clk
0:02:40.6]} 11... b6 {[%clk 0:02:44.6]} 12. f5 {[%clk 0:02:39.9]} 12... e5
{[%clk 0:02:44.3]} 13. Nb3 {[%clk 0:02:38.9]} 13... Bb7 {[%clk 0:02:44.7]} 14.
Nd5 {[%clk 0:02:34.2]} 14... Bxd5 {[%clk 0:02:39]} 15. exd5 {[%clk 0:02:30.6]}
15... Nc5 {[%clk 0:02:38]} 16. Rc1 {[%clk 0:02:22.2]} 16... h4 {[%clk
0:02:36.8]} 17. Nd2 {[%clk 0:02:19.4]} 17... h3 {[%clk 0:02:33.6]} 18. g4 {[%clk
0:02:17]} 18... Nfe4 {[%clk 0:02:10.6]} 19. Nxe4 {[%clk 0:02:15.8]} 19... Nxe4
{[%clk 0:02:12.5]} 20. Qa4+ {[%clk 0:01:57.1]} 20... Qd7 {[%clk 0:02:00.6]} 21.
Qc2 {[%clk 0:01:55.5]} 21... Nc5 {[%clk 0:01:50.8]} 22. b4 {[%clk 0:01:54.6]}
22... Nb7 {[%clk 0:01:52.4]} 23. Bxb6 {[%clk 0:01:53.4]} 23... Bg5 {[%clk
0:01:53.5]} 24. Rcd1 {[%clk 0:01:50.3]} 24... a5 {[%clk 0:01:50.5]} 25. c5
{[%clk 0:01:49.1]} 25... dxc5 {[%clk 0:01:08.3]} 26. bxc5 {[%clk 0:01:51]} 26...
Be3+ {[%clk 0:01:07.7]} 27. Kh1 {[%clk 0:01:50.5]} 27... Qc8 {[%clk 0:01:06.4]}
28. Rd3 {[%clk 0:01:43]} 28... Bd4 {[%clk 0:00:39.1]} 29. Rxd4 {[%clk
0:01:39.5]} 29... exd4 {[%clk 0:00:39.9]} 30. Qe4+ {[%clk 0:01:39.8]} 30... Kf8
{[%clk 0:00:40.2]} 31. c6 {[%clk 0:01:37.8]} 31... Nd6 {[%clk 0:00:32.1]} 32.
Bc5 {[%clk 0:01:37.8]} 32... Qc7 {[%clk 0:00:33.2]} 33. Qe5 {[%clk 0:01:32.4]}
33... Rd8 {[%clk 0:00:24.4]} 34. g5 {[%clk 0:01:27.6]} 34... Qe7 {[%clk
0:00:14.2]} 35. Qxe7+ {[%clk 0:01:14]} 35... Kxe7 {[%clk 0:00:16.1]} 36. f6+
{[%clk 0:01:12.4]} 36... gxf6 {[%clk 0:00:16.6]} 37. gxf6+ {[%clk 0:01:12.4]}
37... Kf8 {[%clk 0:00:17.5]} 38. c7 {[%clk 0:01:12.7]} 38... Rc8 {[%clk
0:00:11.9]} 39. Bxd6+ {[%clk 0:01:12.8]} 39... Kg8 {[%clk 0:00:11.8]} 40. Bd3
{[%clk 0:01:08.7]} 1-0

[Event "*** Titled Tuesday Blitz"]
[Site "Chess.com"]
[Date "2019.07.02"]
[Round "4"]
[White "irregularity"]
[Black "Gattass"]
[Result "1-0"]
[WhiteElo "2538"]
[BlackElo "2295"]
[TimeControl "180+2"]
[EndTime "13:52:18 PDT"]
[Termination "irregularity won by resignation"]

1. Nf3 {[%clk 0:02:29.6]} 1... Nf6 {[%clk 0:02:57.9]} 2. b3 {[%clk 0:02:30.2]}
2... b6 {[%clk 0:02:58.3]} 3. Bb2 {[%clk 0:02:32.1]} 3... e6 {[%clk 0:02:58.5]}
4. e3 {[%clk 0:02:33.7]} 4... Bb7 {[%clk 0:02:59.4]} 5. c4 {[%clk 0:02:35.1]}
5... d5 {[%clk 0:02:59.6]} 6. Nc3 {[%clk 0:02:36.2]} 6... dxc4 {[%clk
0:02:59.2]} 7. Bxc4 {[%clk 0:02:36.9]} 7... c5 {[%clk 0:02:59.8]} 8. Qc2 {[%clk
0:02:38.1]} 8... Nc6 {[%clk 0:03:00.2]} 9. a3 {[%clk 0:02:36.7]} 9... Be7 {[%clk
0:02:58.9]} 10. Rg1 {[%clk 0:02:33.2]} 10... O-O {[%clk 0:02:54.2]} 11. g4
{[%clk 0:02:34.4]} 11... Nd5 {[%clk 0:02:47.9]} 12. g5 {[%clk 0:02:31.3]} 12...
Na5 {[%clk 0:02:41.6]} 13. Be2 {[%clk 0:02:27.2]} 13... Nc7 {[%clk 0:02:32.3]}
14. Ne4 {[%clk 0:02:27]} 14... Bxe4 {[%clk 0:02:19.4]} 15. Qxe4 {[%clk
0:02:25.5]} 15... Qd5 {[%clk 0:02:12.5]} 16. Qh4 {[%clk 0:01:56.2]} 16... Qxb3
{[%clk 0:01:53.7]} 17. Be5 {[%clk 0:01:55.6]} 17... Ne8 {[%clk 0:01:34.2]} 18.
Rg3 {[%clk 0:01:54]} 18... Qc2 {[%clk 0:01:09.5]} 19. d3 {[%clk 0:01:33.7]}
19... f6 {[%clk 0:01:09]} 20. Rh3 {[%clk 0:01:33.9]} 20... h6 {[%clk 0:00:53.4]}
21. Qe4 {[%clk 0:01:05.1]} 21... fxe5 {[%clk 0:00:41.7]} 22. Kf1 {[%clk
0:00:39.3]} 22... Qc3 {[%clk 0:00:28.9]} 23. Re1 {[%clk 0:00:37.8]} 23... Nd6
{[%clk 0:00:25.7]} 24. Qg6 {[%clk 0:00:37.9]} 24... Bxg5 {[%clk 0:00:20]} 25.
Nxg5 {[%clk 0:00:36.4]} 25... hxg5 {[%clk 0:00:20.9]} 26. Qxe6+ {[%clk
0:00:27.3]} 26... Rf7 {[%clk 0:00:19.6]} 27. Bh5 {[%clk 0:00:28.1]} 27... Qxd3+
{[%clk 0:00:18.2]} 28. Kg1 {[%clk 0:00:29.1]} 28... Qf5 {[%clk 0:00:18]} 29.
Bxf7+ {[%clk 0:00:28.8]} 29... Qxf7 {[%clk 0:00:18.5]} 30. Qxd6 {[%clk
0:00:30.1]} 30... Rf8 {[%clk 0:00:19.5]} 31. Rf1 {[%clk 0:00:30.3]} 31... Nc4
{[%clk 0:00:20.1]} 32. Qc6 {[%clk 0:00:30.6]} 32... Nd2 {[%clk 0:00:20.9]} 33.
Rd1 {[%clk 0:00:26.5]} 33... Qxf2+ {[%clk 0:00:19.7]} 34. Kh1 {[%clk 0:00:27.9]}
34... Nf3 {[%clk 0:00:10.3]} 35. Qe6+ {[%clk 0:00:28.7]} 1-0